fUSD/lending_fUSD_20250929
["ID","MTS","AMOUNT","RATE_DAILY","PERIOD"]
[388382774,1759139445620,-500.0,0.0001888,7]
[388382775,1759139445629,-500.0,0.0001888,7]
[388382776,1759139445639,-500.0,0.0001888,7]
[388382777,1759139445649,-500.0,0.0001888,7]
[388382778,1759139445659,-500.0,0.0001888,7]
[388382779,1759139445668,-500.0,0.0001888,7]
[388382780,1759139445678,-500.0,0.0001888,7]
[388382781,1759139445688,-500.0,0.0001888,7]
[388382782,1759139445698,-507.87,0.0001888,7]
[388382783,1759139445708,-500.0,0.0001888,7]
[388382784,1759139445717,-500.0,0.0001888,7]
[388382785,1759139445726,-500.0,0.0001888,7]
[388382786,1759139445735,-500.0,0.0001888,7]
[388382787,1759139445745,-151.0,0.0001888,2]
[388382788,1759139445755,-500.0,0.0001888,7]
[388382789,1759139445764,-500.0,0.0001888,7]
[388382790,1759139445774,-500.0,0.0001888,7]
[388382791,1759139445784,-500.0,0.0001888,7]
[388382792,1759139445793,-214.72,0.0001888,7]
[388382793,1759139445803,-151.0,0.0001888,2]
[388382794,1759139445812,-150.0,0.0001888,7]
[388382795,1759139445822,-150.0,0.0001888,7]
[388382796,1759139445831,-150.0,0.0001888,7]
[388382797,1759139445841,-150.0,0.0001888,7]
[388382798,1759139445851,-150.0,0.0001888,7]
[388382799,1759139445862,-500.0,0.0001888,7]
[388382800,1759139445871,-150.0,0.0001888,7]
[388382801,1759139445882,-151.0,0.0001888,2]
[388382802,1759139445892,-150.0,0.0001888,7]
[388382803,1759139445902,-164.196,0.0001888,2]
[388382804,1759139445912,-150.0,0.0001888,7]
[388382805,1759139445921,-150.0,0.0001888,7]
[388382806,1759139445931,-500.0,0.0001888,7]
[388382807,1759139445941,-706.0,0.0001888,7]
[388382808,1759139445951,-150.0,0.0001888,7]
[388382809,1759139445961,-150.0,0.0001888,7]
[388382810,1759139445970,-150.0,0.0001888,7]
[388382811,1759139445979,-151.0,0.0001888,2]
[388382812,1759139445989,-500.0,0.0001888,7]
[388382813,1759139445999,-150.0,0.0001888,7]
[388382814,1759139446010,-150.0,0.0001888,7]
[388382815,1759139446020,-155.35895,0.0001888,2]
[388382816,1759139446030,-180.90262314,0.0001888,2]
[388382817,1759139446041,-151.0,0.0001888,2]
[388382818,1759139446051,-151.25477731,0.0001888,7]
[388382819,1759139446060,-150.0,0.0001888,7]
[388382821,1759139446071,-287.74492,0.0001888,2]
[388382823,1759139446081,-151.0,0.0001888,2]
[388382825,1759139446090,-150.0,0.0001888,7]
[388382827,1759139446099,-151.0,0.0001888,2]
[388382829,1759139446108,-151.0,0.0001888,2]
[388382831,1759139446119,-244.148878,0.0001888,2]
[388382833,1759139446128,-151.0,0.0001888,2]
[388382834,1759139446138,-151.0,0.0001888,2]
[388382835,1759139446147,-151.0,0.0001888,2]
[388382836,1759139446157,-151.657926,0.0001888,2]
[388382837,1759139446167,-151.0,0.0001888,2]
[388382838,1759139446177,-228.623104,0.0001888,2]
[388382839,1759139446186,-151.0,0.0001888,2]
[388382840,1759139446196,-151.0,0.0001888,2]
[388382841,1759139446206,-151.0,0.0001888,2]
[388382842,1759139446216,-151.0,0.0001888,2]
[388382843,1759139446226,-151.0,0.0001888,2]
[388382844,1759139446235,-151.0,0.0001888,2]
[388382845,1759139446245,-151.0,0.0001888,2]
[388382846,1759139446255,-151.0,0.0001888,2]
[388382847,1759139446265,-166.877477,0.0001888,2]
[388382848,1759139446275,-151.0,0.0001888,2]
[388382849,1759139446286,-151.0,0.0001888,2]
[388382850,1759139446296,-151.0,0.0001888,2]
[388382851,1759139446306,-151.0,0.0001888,2]
[388382852,1759139446316,-151.0,0.0001888,2]
[388382853,1759139446325,-151.0,0.0001888,2]
[388382854,1759139446335,-151.0,0.0001888,2]
[388382855,1759139446344,-151.0,0.0001888,2]
[388382856,1759139446354,-500.0,0.00018881,2]
[388382857,1759139446364,-150.0,0.00018896,2]
[388382858,1759139446374,-150.0,0.00018896,2]
[388382859,1759139446384,-150.0,0.00018896,2]
[388382860,1759139446393,-150.0,0.00018896,2]
[388382861,1759139446403,-150.0,0.00018896,2]
[388382862,1759139446412,-385.33,0.000189,2]
[388382863,1759139446421,-151.0,0.00018904,2]
[388382864,1759139446431,-151.0,0.00018904,2]
[388382865,1759139446440,-5051.28,0.00018923,2]
[388382866,1759139446450,-687.0,0.00018927,2]
[388382867,1759139446459,-401.54001121,0.00018932,2]
[388382868,1759139446469,-1425.0,0.00018935,2]
[388382869,1759139446478,-208.802806,0.00018936,2]
[388382870,1759139446487,-1425.0,0.00018943,2]
[388382871,1759139446497,-1000.0,0.0001895,2]
[388382872,1759139446507,-151.0,0.00018953,2]
[388382873,1759139446516,-151.0,0.00018953,2]
[388382874,1759139446525,-151.0,0.00018953,2]
[388382875,1759139446535,-151.0,0.00018953,2]
[388382876,1759139446545,-207.110078,0.00018953,2]
[388382877,1759139446555,-151.0,0.00018953,2]
[388382878,1759139446565,-336.003738,0.00018953,2]
[388382879,1759139446574,-336.003738,0.00018953,2]
[388382880,1759139446584,-336.003738,0.00018953,2]
[388382881,1759139446593,-151.0,0.00018953,2]
[388382882,1759139446603,-336.003738,0.00018953,2]
[388382883,1759139446617,-253.271648,0.00018953,2]
[388382884,1759139446627,-207.891858,0.00018953,2]
[388382885,1759139446636,-151.0,0.00018953,2]
[388382886,1759139446646,-151.0,0.00018953,2]
[388382887,1759139446659,-152.593002,0.00018953,2]
[388382888,1759139446668,-269.737418,0.00018953,2]
[388382889,1759139446678,-151.0,0.00018953,2]
[388382890,1759139446693,-151.0,0.00018953,2]
[388382891,1759139446704,-151.0,0.00018953,2]
[388382892,1759139446713,-151.0,0.00018953,2]
[388382893,1759139446723,-151.0,0.00018953,2]
[388382894,1759139446732,-151.0,0.00018953,2]
[388382895,1759139446742,-151.0,0.00018953,2]
[388382896,1759139446752,-151.0,0.00018953,2]
[388382897,1759139446762,-151.0,0.00018953,2]
[388382898,1759139446771,-151.0,0.00018953,2]
[388382899,1759139446781,-151.0,0.00018953,2]
[388382900,1759139446790,-151.0,0.00018953,2]
[388382901,1759139446800,-151.0,0.00018953,2]
[388382902,1759139446809,-151.0,0.00018953,2]
[388382903,1759139446819,-151.0,0.00018953,2]
[388382904,1759139446829,-151.0,0.00018953,2]
[388382905,1759139446839,-151.0,0.00018953,2]
[388382906,1759139446849,-151.0,0.00018953,2]
[388382907,1759139446859,-151.0,0.00018953,2]
[388382908,1759139446868,-1425.0,0.00018961,2]
[388382909,1759139446878,-1425.0,0.00018968,2]
[388382910,1759139446888,-668.7723323,0.0001897,2]
[388382911,1759139446897,-4419.84,0.00018973,2]
[388382912,1759139446907,-1425.0,0.00018989,2]
[388382913,1759139446917,-153.01266986,0.00018992,2]
[388382914,1759139446927,-285.59895431,0.00018993,2]
[388382915,1759139446937,-8593.1977752,0.00018995,2]
[388382916,1759139446946,-1425.0,0.00018999,2]
[388382917,1759139446955,-243797.66721246,0.00019,2]
[388382918,1759139446972,-500.0,0.00019,2]
[388382919,1759139446983,-43644.74880728,0.00019,2]
[388382920,1759139446995,-480.0,0.00019,2]
[388382921,1759139447007,-500.0,0.00019,2]
[388382922,1759139447244,-151.0,0.00018375,2]
[388382923,1759139447253,-168.208778,0.0001888,2]
[388382924,1759139447263,-16702.08436561,0.00019,2]
[388382925,1759139447275,-39300.93946959,0.00019,2]
[388382926,1759139447286,-546.03806591,0.00019,2]
[388382927,1759139447297,-5593.95177878,0.00019,2]
[388382928,1759139447309,-2515.76371309,0.00019,2]
[388382929,1759139447320,-3296.41116998,0.00019,2]
[388382930,1759139447336,-364431.6362163,0.00019,2]
[388382931,1759139447346,-400.0,0.00019,6]
[388382932,1759139447355,-687.0,0.00019005,2]
[388382933,1759139447366,-150.0,0.00019006,2]
[388382934,1759139447375,-687.0,0.00019009,2]
[388382935,1759139447385,-1425.0,0.0001901,2]
[388382936,1759139447395,-2231.36751083,0.00019011,2]
[388382937,1759139447405,-1425.0,0.00019013,2]
[388382938,1759139447414,-1425.0,0.00019015,2]
[388382939,1759139447424,-3208.792,0.00019025,2]
[388382940,1759139447433,-171.662,0.00019025,2]
[388382941,1759139447443,-154.318482,0.00019025,2]
[388382942,1759139447452,-151.0,0.00019025,2]
[388382943,1759139447461,-151.0,0.00019025,2]
[388382944,1759139447471,-150.0,0.00019026,2]
[388382945,1759139447481,-2944.0,0.00019026,2]
[388382946,1759139447490,-150.0,0.00019026,2]
[388382947,1759139447499,-500.0,0.00019026,2]
[388382948,1759139447508,-3368.0,0.00019026,2]
[388382949,1759139447518,-632.1371463,0.00019026,2]
[388382950,1759139447527,-150.0,0.00019027,2]
[388382951,1759139447537,-152.32366,0.00019029,2]
[388382952,1759139447547,-151.0,0.00019029,2]
[388382953,1759139447556,-151.0,0.00019029,2]
[388382954,1759139447565,-151.0,0.00019029,2]
[388382955,1759139447575,-151.0,0.00019029,2]
[388382956,1759139447584,-205.245232,0.00019029,2]
[388382957,1759139447593,-1425.0,0.00019033,2]
[388382958,1759139447602,-151.0,0.00019033,2]
[388382959,1759139447612,-151.0,0.00019033,2]
[388382960,1759139447622,-151.0,0.00019033,2]
[388382961,1759139447635,-151.0,0.00019033,2]
[388382962,1759139447645,-151.0,0.00019033,2]
[388382963,1759139447654,-1000.0,0.00019036,2]
[388382964,1759139447663,-1425.0,0.00019042,2]
[388382965,1759139447672,-1425.0,0.00019045,2]
[388382966,1759139447682,-200.0,0.00019048,2]
[388382967,1759139447692,-1425.0,0.00019048,2]
[388382968,1759139447701,-1425.0,0.0001906,2]
[388382969,1759139447711,-1425.0,0.00019061,2]
[388382970,1759139447721,-500.0,0.00019065,2]
[388382971,1759139447731,-500.0,0.00019068,2]
[388382972,1759139447740,-114536.26286169,0.0001907,2]
[388382973,1759139447750,-242.014957,0.0001907,2]
[388382974,1759139447759,-151.0,0.0001907,2]
[388382975,1759139447769,-336.003738,0.0001907,2]
[388382976,1759139447778,-336.003738,0.0001907,2]
[388382977,1759139447787,-336.003738,0.0001907,2]
[388382978,1759139447796,-271.275931,0.0001907,2]
[388382979,1759139447806,-336.003738,0.0001907,2]
[388382980,1759139447815,-151.0,0.0001907,2]
[388382981,1759139447825,-151.0,0.0001907,2]
[388382982,1759139447834,-151.0,0.0001907,2]
[388382983,1759139447843,-151.0,0.0001907,2]
[388382984,1759139447853,-151.0,0.0001907,2]
[388382985,1759139447863,-151.0,0.0001907,2]
[388382986,1759139447876,-151.0,0.0001907,2]
[388382987,1759139447885,-151.0,0.0001907,2]
[388382988,1759139447895,-258.696373,0.0001907,2]
[388382989,1759139447904,-151.0,0.0001907,2]
[388382990,1759139447914,-151.0,0.0001907,2]
[388382991,1759139447924,-151.0,0.0001907,2]
[388382992,1759139447934,-151.0,0.0001907,2]
[388382993,1759139447944,-151.0,0.0001907,2]
[388382994,1759139447954,-151.0,0.0001907,2]
[388382995,1759139447965,-151.0,0.0001907,2]
[388382996,1759139447981,-500.0,0.00019071,2]
[388382997,1759139447991,-687.0,0.00019071,2]
[388382998,1759139448002,-668.77233224,0.00019073,2]
[388382999,1759139448012,-687.0,0.00019073,2]
[388383000,1759139448022,-1425.0,0.00019082,2]
[388383001,1759139448033,-500.0,0.00019083,2]
[388383002,1759139448043,-1000.0,0.00019083,2]
[388383003,1759139448054,-1425.0,0.00019092,2]
[388383004,1759139448066,-150.0,0.00019095,2]
[388383005,1759139448077,-150.0,0.00019098,2]
[388383006,1759139448087,-500.0,0.00019098,2]
[388383007,1759139448097,-150.0,0.00019098,2]
[388383008,1759139448108,-442.0,0.00019098,2]
[388383009,1759139448120,-150.0,0.00019098,2]
[388383010,1759139448131,-900.0,0.000191,6]
[388383011,1759139448143,-1425.0,0.00019104,2]
[388383012,1759139448155,-1425.0,0.00019111,2]
[388383013,1759139448168,-1425.0,0.00019111,2]
[388383014,1759139448178,-1425.0,0.00019112,2]
[388383015,1759139448189,-1425.0,0.00019113,2]
[388383016,1759139448201,-150.0,0.00019113,2]
[388383017,1759139448214,-1000.0,0.00019115,2]
[388383018,1759139448226,-1000.0,0.00019116,2]
[388383019,1759139448236,-1000.0,0.00019117,2]
[388383020,1759139448249,-153.01266985,0.00019122,2]
[388383021,1759139448260,-1425.0,0.00019122,2]
[388383022,1759139448270,-1425.0,0.00019128,2]
[388383023,1759139448281,-150.0,0.00019131,2]
[388383024,1759139448291,-1425.0,0.00019134,2]
[388383025,1759139448301,-150.0,0.00019135,2]
[388383026,1759139448312,-518.09454897,0.00019137,2]
[388383027,1759139448322,-1425.0,0.00019138,2]
[388383028,1759139448332,-1000.0,0.00019139,2]
[388383029,1759139448342,-1425.0,0.00019142,2]
[388383030,1759139448752,-500.0,0.00019147,2]
[388383031,1759139448763,-1000.0,0.00019151,2]
[388383032,1759139448775,-252.24140496,0.00019154,7]
[388383033,1759139448785,-500.0,0.00019154,7]
[388383034,1759139448795,-150.0,0.00019154,7]
[388383035,1759139448806,-500.0,0.00019154,7]
[388383036,1759139448816,-706.0,0.00019154,7]
[388383037,1759139448827,-178.68781472,0.00019154,7]
[388383038,1759139448837,-150.0,0.00019154,7]
[388383039,1759139448847,-500.0,0.00019154,7]
[388383040,1759139448858,-223.73907473,0.00019154,7]
[388383041,1759139448869,-1425.0,0.00019156,2]
[388383042,1759139448879,-253.46047172,0.00019158,2]
[388383043,1759139448890,-1425.0,0.00019159,2]
[388383044,1759139448901,-168.0,0.00019169,2]
[388383045,1759139448911,-1604.19630545,0.00019169,2]
[388383046,1759139448921,-206.0,0.0001917,2]
[388383047,1759139448931,-668.77233224,0.00019177,2]
[388383048,1759139448940,-37531.28518408,0.00019177,2]
[388383049,1759139448954,-15813.93388871,0.00019177,2]
[388383050,1759139448975,-4145.2411,0.00019177,2]
[388383055,1759139782379,4.50161213,0.00014967,2]
[388383056,1759139789400,-303.15898276,0.00014967,2]
[388383057,1759139796436,-390.50401724,0.00014967,2]
[388383058,1759139803536,-391.83538787,0.00014967,2]
[388383059,1759139803571,-207.8840832,0.00014967,2]
[388383060,1759139810592,-471.32028212,0.00014967,2]
[388383061,1759139817633,-65.27339638,0.00014967,2]
[388383062,1759139817657,-345.5222383,0.00014967,2]
[388383063,1759139825645,-186.03711856,0.00014967,2]
[388383064,1759139834225,-163.87,0.00014967,2]
[388383065,1759139843592,-300.0,0.00014967,2]
[388383066,1759139849795,-163.87,0.00014967,2]
[388383067,1759139856798,-23.77711856,0.00014967,2]
[388383068,1759139856823,-252.44576288,0.00014967,2]
[388383069,1759139863861,-410.85535205,0.0001499,2]
[388383070,1759139874162,-163.87,0.0001499,2]
[388383071,1759139882001,-168.0,0.0001499,2]
[388383072,1759139890037,-188.61,0.0001499,2]
[388383073,1759139924730,-158.66464795,0.0001499,2]
[388383074,1759139924783,-160.16519066,0.0001499,2]
[388383075,1759139930635,-142.99380934,0.0001499,2]
[388383076,1759139930671,-236.51789476,0.0001499,2]
[388383077,1759140072516,-153.98610524,0.0001499,2]
[388383078,1759140072541,-195.0,0.00015384,2]
[388383079,1759140072564,-1051.01389476,0.00015779,2]
[388383080,1759140111133,-38.98610524,0.00015779,2]
[388383081,1759140111157,-195.0,0.00016046,2]
[388383082,1759140111180,-808.962,0.00016364,2]
[388383083,1759140111203,-300.0,0.00016487,2]
[388383084,1759140111226,-300.0,0.00016488,2]
[388383085,1759140111250,-1200.0,0.00016488,2]
[388383086,1759140111272,-300.0,0.00016488,2]
[388383087,1759140111295,-204.47197539,0.00016489,2]
[388383088,1759140111319,-300.0,0.00016489,2]
[388383089,1759140111341,-300.0,0.00016489,2]
[388383090,1759140111365,-1052.57991937,0.00016489,2]
[388383091,1759140130071,-947.42008063,0.00016489,2]
[388383092,1759140130096,-195.0,0.00016489,2]
[388383093,1759140130121,-1090.0,0.00016609,2]
[388383094,1759140130143,-169.54618624,0.00016612,2]
[388383095,1759140130166,-162.32,0.00016712,2]
[388383096,1759140130189,-435.71373313,0.000169,2]
[388383098,1759140167267,159.97,8.965e-05,2]
[388383099,1759140167482,159.97,0.00013448,2]
[388383103,1759140477211,300.0,0.00025,120]
[388383111,1759140632205,-64.28626687,0.000169,2]
[388383112,1759140632215,-250.0,0.00017,2]
[388383113,1759140632225,-574.725352,0.00017396,2]
[388383114,1759140632236,-40.61511572,0.000174,2]
[388383115,1759140632248,-128.93107051,0.000174,2]
[388383116,1759140632258,-1090.0,0.00017484,2]
[388383117,1759140632271,-2000.0,0.000178,2]
[388383118,1759140632281,-163.6,0.00017828,2]
[388383119,1759140632291,-250.0,0.0001785,2]
[388383120,1759140632301,-164.43,0.00017899,2]
[388383121,1759140632311,-273.4121949,0.000179,2]
[388383122,1759140632323,-26.5878051,0.000179,2]
[388383123,1759140632333,-300.0,0.000179,2]
[388383124,1759140632343,-1200.0,0.000179,2]
[388383125,1759140632354,-300.0,0.000179,2]
[388383126,1759140632364,-150.0,0.00017901,2]
[388383127,1759140632374,-150.0,0.00017901,2]
[388383128,1759140632384,-150.0,0.00017901,2]
[388383129,1759140632394,-150.0,0.00017901,2]
[388383130,1759140632404,-150.0,0.00017901,2]
[388383131,1759140632414,-150.0,0.00017901,2]
[388383132,1759140632424,-150.0,0.00017901,2]
[388383133,1759140632433,-150.57893365,0.00017901,2]
[388383134,1759140632443,-152.61638854,0.00017901,2]
[388383135,1759140632452,-150.0,0.00017901,2]
[388383136,1759140632463,-150.0,0.00017901,2]
[388383137,1759140632472,-150.0,0.00017901,2]
[388383138,1759140632482,-150.0,0.00017901,2]
[388383139,1759140632491,-150.0,0.00017901,2]
[388383140,1759140632501,-150.0,0.00017901,2]
[388383141,1759140632511,-597.16,0.00017914,2]
[388383142,1759140632520,-185.91,0.00017924,2]
[388383143,1759140632529,-159.97,0.0001793,2]
[388383144,1759140632539,-850.0,0.0001812,2]
[388383145,1759140632548,-598.18,0.00018121,2]
[388383146,1759140632558,-2175.41451695,0.00018121,2]
[388383147,1759140632570,-6824.58548305,0.00018121,2]
[388383148,1759140632580,-8260.13072239,0.00018121,2]
[388383150,1759140632591,-201.93286099,0.00018121,2]
[388383152,1759140632601,-239.84119403,0.00018121,2]
[388383154,1759140632610,-322.6107,0.00018142,2]
[388383156,1759140632619,-151.0,0.00018142,2]
[388383158,1759140632628,-695.39793187,0.00018142,2]
[388383160,1759140632637,-500.0,0.00018142,2]
[388383162,1759140632647,-500.0,0.00018142,2]
[388383164,1759140632656,-500.0,0.00018142,2]
[388383168,1759140632667,-500.0,0.00018142,2]
[388383170,1759140632676,-500.0,0.00018142,2]
[388383174,1759140632686,-1000.0,0.00018142,2]
[388383177,1759140632695,-500.0,0.00018142,2]
[388383179,1759140632705,-650.50184822,0.00018142,2]
[388383181,1759140632717,-349.49815178,0.00018142,2]
[388383183,1759140632727,-1000.0,0.00018142,2]
[388383185,1759140632736,-200.0,0.00018142,2]
[388383187,1759140632746,-50.50184822,0.00018142,2]
[388383190,1759140632762,-949.49815178,0.00018142,2]
[388383192,1759140632771,-200.0,0.00018142,2]
[388383194,1759140632781,-1000.0,0.00018142,2]
[388383196,1759140632790,-200.0,0.00018142,2]
[388383198,1759140632800,-1000.0,0.00018142,2]
[388383200,1759140632809,-200.0,0.00018142,2]
[388383202,1759140632819,-200.0,0.00018142,2]
[388383204,1759140632829,-1000.0,0.00018142,2]
[388383206,1759140632838,-200.0,0.00018142,2]
[388383208,1759140632847,-380.94120637,0.00018142,2]
[388383210,1759140632858,-628.05537678,0.00018142,2]
[388383213,1759140632871,-80.08386312,0.00018142,2]
[388383214,1759140632881,-200.0,0.00018142,2]
[388383215,1759140632891,-200.0,0.00018142,2]
[388383216,1759140632901,-51.55493348,0.00018142,2]
[388383217,1759140632913,-148.44506652,0.00018142,2]
[388383218,1759140632923,-224.27076834,0.00018142,2]
[388383219,1759140632933,-151.0,0.00018142,2]
[388383220,1759140632943,-344.4723227,0.00018142,2]
[388383221,1759140632953,-500.0,0.00018164,2]
[388383222,1759140632962,-611.82726895,0.00018176,2]
[388383223,1759140632974,-450.0,0.00018176,2]
[388383224,1759140632986,-2621.42085704,0.00018176,2]
[388383225,1759140632995,-150.0,0.00018186,2]
[388383226,1759140633006,-491.5045475,0.00018203,2]
[388383227,1759140633018,-360.07288436,0.00018203,2]
[388383228,1759140633029,-148.42256814,0.00018203,2]
[388383229,1759140633039,-850.03503185,0.00018215,2]
[388383230,1759140633051,-1775.86496815,0.00018215,2]
[388383231,1759140633060,-200.0,0.00018297,2]
[388383232,1759140633070,-2793.34141316,0.00018297,2]
[388383236,1759140638163,-433.95858684,0.00018297,2]
[388383237,1759140638175,-168.49,0.00018318,2]
[388383238,1759140638185,-1939.89,0.00018337,2]
[388383239,1759140638199,-189.18,0.00018343,2]
[388383240,1759140638209,-151.66,0.00018356,2]
[388383241,1759140638218,-150.54,0.00018356,2]
[388383242,1759140638229,-301.82,0.00018356,2]
[388383243,1759140638240,-1090.0,0.00018358,2]
[388383244,1759140638250,-598.18,0.00018395,2]
[388383245,1759140638260,-150.0,0.00018399,2]
[388383246,1759140638281,-150.0,0.0001847,2]
[388383247,1759140638297,-215.0,0.000185,2]
[388383248,1759140638307,-897.7215292,0.0001856,2]
[388383249,1759140638318,-150.0,0.00018564,2]
[388383250,1759140638329,-150.0,0.00018564,2]
[388383251,1759140638340,-150.0,0.00018564,2]
[388383252,1759140638350,-598.18,0.00018669,2]
[388383253,1759140638361,-338.9513045,0.00018669,2]
[388383254,1759140638381,-1406.16,0.00018669,2]
[388383439,1759140640538,-1026.99999999,0.00018669,2]
[388383441,1759140640551,-6227.88869551,0.00018669,2]
[388383443,1759140640561,-168.0,0.00018694,2]
[388383445,1759140640571,-150.0,0.00018754,2]
[388383447,1759140640581,-500.0,0.00018825,2]
[388383449,1759140640591,-500.0,0.00018825,2]
[388383451,1759140640601,-500.0,0.00018825,2]
[388383453,1759140640611,-500.0,0.00018825,2]
[388383455,1759140640621,-500.0,0.00018825,2]
[388383457,1759140640632,-500.0,0.00018825,2]
[388383459,1759140640641,-500.0,0.00018869,2]
[388383461,1759140640651,-150.0,0.00018896,2]
[388383464,1759140640666,-150.0,0.00018896,2]
[388383466,1759140640675,-150.0,0.00018896,2]
[388383468,1759140640685,-598.18,0.00018943,2]
[388383470,1759140640694,-700.0,0.00019,6]
[388383472,1759140640705,-171.662,0.0001901,2]
[388383474,1759140640715,-163.6,0.00019017,2]
[388383476,1759140640725,-2567.034,0.00019024,2]
[388383478,1759140640735,-1425.0,0.00019033,2]
[388383480,1759140640745,-150.0,0.00019038,2]
[388383482,1759140640755,-500.0,0.00019043,2]
[388383484,1759140640765,-1567.22735628,0.00019065,2]
[388383487,1759140640775,-168.0,0.00019067,2]
[388383489,1759140640786,-1000.0,0.00019079,2]
[388383491,1759140640796,-1000.0,0.00019097,2]
[388383493,1759140640805,-150.0,0.00019098,2]
[388383495,1759140640815,-200.0,0.00019099,2]
[388383497,1759140640826,-1500.0,0.000191,6]
[388383499,1759140640838,-700.25050683,0.00019112,2]
[388383501,1759140640849,-1425.0,0.00019115,2]
[388383504,1759140640860,-1000.0,0.00019139,2]
[388383506,1759140640871,-1000.0,0.00019142,2]
[388383508,1759140640881,-520.85127512,0.00019143,2]
[388383510,1759140640891,-168.0,0.0001915,2]
[388383512,1759140640901,-1425.0,0.00019151,2]
[388383514,1759140640912,-1425.0,0.00019152,2]
[388383516,1759140640921,-164.56465682,0.00019152,2]
[388383518,1759140640931,-173.34306462,0.00019152,2]
[388383520,1759140640941,-401.70611555,0.00019152,2]
[388383522,1759140640951,-500.0,0.00019153,2]
[388383524,1759140640961,-150.0,0.00019154,7]
[388383526,1759140640971,-647.0,0.00019154,7]
[388383528,1759140640981,-150.0,0.00019154,7]
[388383530,1759140640991,-150.0,0.00019154,7]
[388383532,1759140641000,-500.0,0.00019154,7]
[388383534,1759140641011,-150.0,0.00019154,2]
[388383536,1759140641021,-150.0,0.00019154,7]
[388383538,1759140641030,-500.0,0.00019154,7]
[388383540,1759140641040,-150.0,0.00019154,7]
[388383542,1759140641055,-500.0,0.00019154,7]
[388383545,1759140641066,-150.0,0.00019154,7]
[388383547,1759140641076,-200.0,0.00019154,7]
[388383549,1759140641086,-500.0,0.00019154,2]
[388383551,1759140641096,-2699.0,0.00019154,7]
[388383553,1759140641107,-200.0,0.00019154,7]
[388383555,1759140641117,-500.0,0.00019154,2]
[388383557,1759140641129,-3088.0,0.00019154,7]
[388383559,1759140641138,-1567.22735624,0.00019158,2]
[388383561,1759140641149,-33144.3865408,0.00019159,2]
[388383563,1759140641161,-150.0,0.00019165,2]
[388383565,1759140641171,-500.0,0.00019165,2]
[388383567,1759140641182,-500.0,0.00019165,2]
[388383569,1759140641195,-500.0,0.00019165,2]
[388383571,1759140641205,-150.0,0.00019165,2]
[388383573,1759140641215,-14031.25170734,0.00019177,2]
[388383576,1759140641226,-200.0,0.00019177,2]
[388383578,1759140641236,-200.0,0.00019177,2]
[388383580,1759140641246,-179.12408517,0.00019177,2]
[388383582,1759140641256,-1230.0,0.00019177,2]
[388383584,1759140641268,-152.0,0.00019177,2]
[388383585,1759140641278,-153.09443804,0.00019177,2]
[388383587,1759140641287,-154.58100945,0.00019177,2]
[388383590,1759140641298,-1525.67167,0.00019177,2]
[388383592,1759140641308,-1230.0,0.00019177,2]
[388383594,1759140641318,-481.0,0.00019178,7]
[388383596,1759140641328,-151.0,0.00019178,2]
[388383598,1759140641338,-152.0,0.00019185,2]
[388383600,1759140641347,-1425.0,0.00019187,2]
[388383602,1759140641357,-1425.0,0.00019199,2]